[Event "Titled Tuesday Blitz June 6 Late 2023"]
[White "Riehle, Marco"]
[Black "szachmistrz2500"]
[WhiteFideId "12904392"]
[WhiteElo "2462"]
[BlackElo "2450"]
[Result "0-1"]
[Round "2"]
[TimeControl "180+2"]
[Date "2023.06.07"]
[WhiteClock "0:01:09"]
[BlackClock "0:00:40"]
[Board "88"]

1. e4 {[%clk 0:02:59]}  c5 {[%clk 0:02:59]} 2. a3 {[%clk 0:02:59]}  Nc6 {[%clk 0:02:49]} 3. b4 {[%clk 0:03:00]}  d6 {[%clk 0:02:46]} 4. b5 {[%clk 0:03:00]}  Ne5 {[%clk 0:02:43]} 5. f4 {[%clk 0:03:00]}  Ng6 {[%clk 0:02:42]} 6. f5 {[%clk 0:02:59]}  Ne5 {[%clk 0:02:42]} 7. Bb2 {[%clk 0:03:00]}  g6 {[%clk 0:02:41]} 8. Nf3 {[%clk 0:02:59]}  Bg7 {[%clk 0:02:41]} 9. Nxe5 {[%clk 0:02:59]}  dxe5 {[%clk 0:02:38]} 10. fxg6 {[%clk 0:02:59]}  hxg6 {[%clk 0:02:38]} 11. Bc4 {[%clk 0:02:59]}  Qd6 {[%clk 0:02:36]} 12. d3 {[%clk 0:02:57]}  Be6 {[%clk 0:02:35]} 13. Nd2 {[%clk 0:02:57]}  Nf6 {[%clk 0:02:33]} 14. Qf3 {[%clk 0:02:52]}  O-O-O {[%clk 0:02:24]} 15. Bxe6+ {[%clk 0:02:51]}  Qxe6 {[%clk 0:02:24]} 16. Nc4 {[%clk 0:02:50]}  Ne8 {[%clk 0:02:19]} 17. O-O-O {[%clk 0:02:48]}  Nd6 {[%clk 0:02:19]} 18. Nxd6+ {[%clk 0:02:47]}  exd6 {[%clk 0:02:18]} 19. Kb1 {[%clk 0:02:45]}  f5 {[%clk 0:02:17]} 20. exf5 {[%clk 0:02:44]}  gxf5 {[%clk 0:02:17]} 21. Rdf1 {[%clk 0:02:44]}  Rdf8 {[%clk 0:02:14]} 22. Qe2 {[%clk 0:02:33]}  d5 {[%clk 0:02:13]} 23. h3 {[%clk 0:02:31]}  d4 {[%clk 0:02:08]} 24. g4 {[%clk 0:02:28]}  fxg4 {[%clk 0:01:58]} 25. hxg4 {[%clk 0:02:27]}  Rxh1 {[%clk 0:01:55]} 26. Rxh1 {[%clk 0:02:27]}  Rf4 {[%clk 0:01:55]} 27. Rg1 {[%clk 0:02:10]}  e4 {[%clk 0:01:55]} 28. dxe4 {[%clk 0:02:10]}  Rxe4 {[%clk 0:01:51]} 29. Qf1 {[%clk 0:02:07]}  c4 {[%clk 0:01:49]} 30. Qf5 {[%clk 0:02:06]}  Kd7 {[%clk 0:01:40]} 31. Bc1 {[%clk 0:01:55]}  Re5 {[%clk 0:01:35]} 32. Qxe6+ {[%clk 0:01:55]}  Kxe6 {[%clk 0:01:36]} 33. a4 {[%clk 0:01:56]}  a6 {[%clk 0:01:27]} 34. bxa6 {[%clk 0:01:55]}  bxa6 {[%clk 0:01:27]} 35. Rh1 {[%clk 0:01:48]}  Ra5 {[%clk 0:01:25]} 36. Re1+ {[%clk 0:01:46]}  Kf7 {[%clk 0:01:17]} 37. Rf1+ {[%clk 0:01:41]}  Kg6 {[%clk 0:01:16]} 38. Re1 {[%clk 0:01:42]}  Rxa4 {[%clk 0:01:15]} 39. Re6+ {[%clk 0:01:42]}  Kf7 {[%clk 0:01:13]} 40. Rc6 {[%clk 0:01:38]}  d3 {[%clk 0:01:10]} 41. cxd3 {[%clk 0:01:36]}  cxd3 {[%clk 0:01:10]} 42. Rc7+ {[%clk 0:01:36]}  Kg6 {[%clk 0:01:04]} 43. Rc6+ {[%clk 0:01:35]}  Kh7 {[%clk 0:01:01]} 44. Bb2 {[%clk 0:01:31]}  Rb4 {[%clk 0:00:57]} 45. Rxa6 {[%clk 0:01:31]}  Rxb2+ {[%clk 0:00:56]} 46. Kc1 {[%clk 0:01:31]}  Rg2 {[%clk 0:00:54]} 47. Rd6 {[%clk 0:01:27]}  Bh6+ {[%clk 0:00:51]} 48. Kb1 {[%clk 0:01:23]}  d2 {[%clk 0:00:50]} 49. Kc2 {[%clk 0:01:21]}  Rxg4 {[%clk 0:00:48]} 50. Rd7+ {[%clk 0:01:20]}  Kg6 {[%clk 0:00:46]} 51. Rd6+ {[%clk 0:01:20]}  Kh5 {[%clk 0:00:46]} 52. Rd5+ {[%clk 0:01:21]}  Bg5 {[%clk 0:00:45]} 53. Kb3 {[%clk 0:01:18]}  Rg1 {[%clk 0:00:45]} 54. Rc5 {[%clk 0:01:12]}  d1=Q+ {[%clk 0:00:43]} 55. Rc2 {[%clk 0:01:13]}  Rg3+ {[%clk 0:00:42]} 56. Kb2 {[%clk 0:01:11]}  Bf6+ {[%clk 0:00:40]} 57. Rc3 {[%clk 0:01:09]} 0-1


[Site "https://www.chess.com"]

[Event "Titled Tuesday Blitz June 6 Late 2023"]
[White "Kovalevsky, Stanislav"]
[Black "Papasimakopoulos, Alexandros"]
[WhiteFideId "13508598"]
[BlackFideId "4244125"]
[WhiteElo "2112"]
[BlackElo "2359"]
[Result "0-1"]
[Round "2"]
[TimeControl "180+2"]
[Date "2023.06.07"]
[WhiteClock "0:00:03"]
[BlackClock "0:00:50"]
[Board "89"]

1. c4 {[%clk 0:03:00]}  e6 {[%clk 0:02:53]} 2. e4 {[%clk 0:03:00]}  d5 {[%clk 0:02:53]} 3. exd5 {[%clk 0:03:01]}  exd5 {[%clk 0:02:53]} 4. cxd5 {[%clk 0:03:02]}  Nf6 {[%clk 0:02:53]} 5. Nc3 {[%clk 0:03:03]}  Nxd5 {[%clk 0:02:51]} 6. Bc4 {[%clk 0:03:04]}  Nb6 {[%clk 0:02:51]} 7. Bb3 {[%clk 0:03:04]}  Be7 {[%clk 0:02:51]} 8. Nge2 {[%clk 0:03:02]}  O-O {[%clk 0:02:51]} 9. O-O {[%clk 0:03:02]}  Nc6 {[%clk 0:02:49]} 10. d4 {[%clk 0:03:01]}  Bg4 {[%clk 0:02:49]} 11. f3 {[%clk 0:03:01]}  Bf5 {[%clk 0:02:46]} 12. Be3 {[%clk 0:03:02]}  Na5 {[%clk 0:02:44]} 13. Bc2 {[%clk 0:02:51]}  Bxc2 {[%clk 0:02:44]} 14. Qxc2 {[%clk 0:02:52]}  Nac4 {[%clk 0:02:42]} 15. Bf2 {[%clk 0:02:52]}  Re8 {[%clk 0:02:37]} 16. Rfe1 {[%clk 0:02:37]}  Bg5 {[%clk 0:02:30]} 17. Ng3 {[%clk 0:02:30]}  Be3 {[%clk 0:02:25]} 18. Bxe3 {[%clk 0:02:06]}  Nxe3 {[%clk 0:02:26]} 19. Qd3 {[%clk 0:02:06]}  Ned5 {[%clk 0:02:25]} 20. Nf5 {[%clk 0:01:53]}  Qg5 {[%clk 0:02:23]} 21. g3 {[%clk 0:01:10]}  g6 {[%clk 0:01:58]} 22. Nh4 {[%clk 0:00:58]}  Nb4 {[%clk 0:01:51]} 23. Qb5 {[%clk 0:00:51]}  Qxb5 {[%clk 0:01:40]} 24. Nxb5 {[%clk 0:00:52]}  N6d5 {[%clk 0:01:38]} 25. Re4 {[%clk 0:00:20]}  f5 {[%clk 0:01:34]} 26. Re5 {[%clk 0:00:18]}  c6 {[%clk 0:01:31]} 27. Nd6 {[%clk 0:00:18]}  Reb8 {[%clk 0:01:17]} 28. a3 {[%clk 0:00:10]}  Nd3 {[%clk 0:01:17]} 29. Re6 {[%clk 0:00:09]}  Nxb2 {[%clk 0:01:15]} 30. Rb1 {[%clk 0:00:07]}  Na4 {[%clk 0:01:10]} 31. Rxb7 {[%clk 0:00:08]}  Rxb7 {[%clk 0:01:10]} 32. Nxb7 {[%clk 0:00:08]}  Rb8 {[%clk 0:01:07]} 33. Nd6 {[%clk 0:00:07]}  Nac3 {[%clk 0:01:00]} 34. g4 {[%clk 0:00:07]}  Rb1+ {[%clk 0:00:52]} 35. Kf2 {[%clk 0:00:05]}  Rb2+ {[%clk 0:00:53]} 36. Kg3 {[%clk 0:00:05]}  Ne2+ {[%clk 0:00:52]} 37. Rxe2 {[%clk 0:00:01]}  Rxe2 {[%clk 0:00:52]} 38. gxf5 {[%clk 0:00:02]}  g5 {[%clk 0:00:50]} 39. f6 {[%clk 0:00:02]}  gxh4+ {[%clk 0:00:49]} 40. Kg4 {[%clk 0:00:02]}  Nxf6+ {[%clk 0:00:50]} 41. Kf5 {[%clk 0:00:03]}  Ne8 {[%clk 0:00:50]} 42. Nxe8 {[%clk 0:00:03]}  Rxe8 {[%clk 0:00:50]} 0-1


[Site "https://www.chess.com"]

[Event "Titled Tuesday Blitz June 6 Late 2023"]
[White "marik_spb"]
[Black "Sieciechowicz, Marcin"]
[BlackFideId "1130170"]
[WhiteElo "2413"]
[BlackElo "2301"]
[Result "0-1"]
[Round "2"]
[TimeControl "180+2"]
[Date "2023.06.07"]
[WhiteClock "0:00:02"]
[BlackClock "0:01:07"]
[Board "90"]

1. d4 {[%clk 0:02:53]}  d5 {[%clk 0:02:58]} 2. c4 {[%clk 0:02:53]}  c6 {[%clk 0:02:56]} 3. Nf3 {[%clk 0:02:53]}  Nf6 {[%clk 0:02:57]} 4. Nc3 {[%clk 0:02:52]}  e6 {[%clk 0:02:58]} 5. g3 {[%clk 0:02:52]}  dxc4 {[%clk 0:02:57]} 6. Bg2 {[%clk 0:02:52]}  b5 {[%clk 0:02:58]} 7. O-O {[%clk 0:02:41]}  Bb7 {[%clk 0:02:56]} 8. Ne5 {[%clk 0:02:35]}  a6 {[%clk 0:02:52]} 9. a4 {[%clk 0:02:33]}  Be7 {[%clk 0:02:43]} 10. axb5 {[%clk 0:02:27]}  axb5 {[%clk 0:02:44]} 11. Rxa8 {[%clk 0:02:27]}  Bxa8 {[%clk 0:02:45]} 12. Nxb5 {[%clk 0:02:28]}  cxb5 {[%clk 0:02:46]} 13. Bxa8 {[%clk 0:02:28]}  O-O {[%clk 0:02:47]} 14. Bg2 {[%clk 0:02:28]}  Qb6 {[%clk 0:02:42]} 15. e3 {[%clk 0:02:23]}  Nfd7 {[%clk 0:02:34]} 16. Nxd7 {[%clk 0:02:19]}  Nxd7 {[%clk 0:02:35]} 17. Qc2 {[%clk 0:02:18]}  e5 {[%clk 0:02:31]} 18. dxe5 {[%clk 0:02:17]}  Nxe5 {[%clk 0:02:32]} 19. Bd2 {[%clk 0:02:17]}  h6 {[%clk 0:02:28]} 20. Bc3 {[%clk 0:02:06]}  Bf6 {[%clk 0:02:28]} 21. Bd4 {[%clk 0:02:01]}  Qe6 {[%clk 0:02:14]} 22. Ra1 {[%clk 0:01:43]}  Nd3 {[%clk 0:02:15]} 23. Bxf6 {[%clk 0:00:28]}  Qxf6 {[%clk 0:02:15]} 24. Bf1 {[%clk 0:00:29]}  Nxb2 {[%clk 0:01:54]} 25. Rb1 {[%clk 0:00:29]}  c3 {[%clk 0:01:43]} 26. Bxb5 {[%clk 0:00:29]}  Rd8 {[%clk 0:01:40]} 27. Qe4 {[%clk 0:00:15]}  Rd2 {[%clk 0:01:33]} 28. Rf1 {[%clk 0:00:16]}  c2 {[%clk 0:01:24]} 29. Ba4 {[%clk 0:00:10]}  c1=Q {[%clk 0:01:15]} 30. Qa8+ {[%clk 0:00:02]}  Kh7 {[%clk 0:01:10]} 31. Qe4+ {[%clk 0:00:02]}  g6 {[%clk 0:01:10]} 32. Rxc1 {[%clk 0:00:01]}  Qxf2+ {[%clk 0:01:09]} 33. Kh1 {[%clk 0:00:02]}  Qxh2# {[%clk 0:01:07]} 0-1


[Site "https://www.chess.com"]

[Event "Titled Tuesday Blitz June 6 Late 2023"]
[White "Shuvalova, Polina"]
[Black "Vega Gutierrez, Sabrina"]
[WhiteFideId "24171760"]
[BlackFideId "2219026"]
[WhiteElo "2281"]
[BlackElo "2209"]
[Result "0-1"]
[Round "2"]
[TimeControl "180+2"]
[Date "2023.06.07"]
[WhiteClock "0:00:03"]
[BlackClock "0:00:18"]
[Board "91"]

1. Nf3 {[%clk 0:03:00]}  d5 {[%clk 0:03:00]} 2. g3 {[%clk 0:03:01]}  e6 {[%clk 0:02:59]} 3. Bg2 {[%clk 0:03:02]}  Nf6 {[%clk 0:03:00]} 4. O-O {[%clk 0:03:02]}  Be7 {[%clk 0:03:00]} 5. d3 {[%clk 0:03:02]}  O-O {[%clk 0:03:00]} 6. Nbd2 {[%clk 0:03:03]}  c5 {[%clk 0:03:00]} 7. e4 {[%clk 0:03:03]}  Nc6 {[%clk 0:03:00]} 8. Re1 {[%clk 0:03:00]}  Qc7 {[%clk 0:02:59]} 9. c3 {[%clk 0:02:58]}  Rd8 {[%clk 0:02:24]} 10. Qe2 {[%clk 0:02:58]}  Bf8 {[%clk 0:02:20]} 11. h4 {[%clk 0:02:51]}  b5 {[%clk 0:02:17]} 12. e5 {[%clk 0:02:48]}  Nd7 {[%clk 0:02:16]} 13. Nf1 {[%clk 0:02:49]}  a5 {[%clk 0:02:14]} 14. Bf4 {[%clk 0:02:44]}  b4 {[%clk 0:02:08]} 15. c4 {[%clk 0:02:41]}  Nb6 {[%clk 0:02:07]} 16. Rac1 {[%clk 0:02:37]}  Bb7 {[%clk 0:02:03]} 17. Ne3 {[%clk 0:02:26]}  dxc4 {[%clk 0:02:03]} 18. dxc4 {[%clk 0:02:25]}  Nd4 {[%clk 0:02:03]} 19. Nxd4 {[%clk 0:02:24]}  cxd4 {[%clk 0:01:55]} 20. Bxb7 {[%clk 0:02:19]}  Qxb7 {[%clk 0:01:53]} 21. Ng4 {[%clk 0:02:16]}  d3 {[%clk 0:01:53]} 22. Qe4 {[%clk 0:02:09]}  Qxe4 {[%clk 0:01:51]} 23. Rxe4 {[%clk 0:02:10]}  Rac8 {[%clk 0:01:50]} 24. b3 {[%clk 0:02:08]}  a4 {[%clk 0:01:42]} 25. Rd1 {[%clk 0:02:06]}  axb3 {[%clk 0:01:38]} 26. axb3 {[%clk 0:02:07]}  Ra8 {[%clk 0:01:38]} 27. Be3 {[%clk 0:02:03]}  Nd7 {[%clk 0:01:08]} 28. Rxd3 {[%clk 0:02:02]}  Nc5 {[%clk 0:01:08]} 29. Rxd8 {[%clk 0:01:59]}  Rxd8 {[%clk 0:01:08]} 30. Bxc5 {[%clk 0:01:57]}  Bxc5 {[%clk 0:01:09]} 31. Re2 {[%clk 0:01:43]}  Rd3 {[%clk 0:01:09]} 32. Ne3 {[%clk 0:01:27]}  h5 {[%clk 0:00:58]} 33. Kg2 {[%clk 0:00:54]}  Rxb3 {[%clk 0:00:58]} 34. Kf3 {[%clk 0:00:54]}  Rc3 {[%clk 0:00:57]} 35. Ke4 {[%clk 0:00:45]}  Bxe3 {[%clk 0:00:37]} 36. fxe3 {[%clk 0:00:35]}  Rxc4+ {[%clk 0:00:37]} 37. Kf3 {[%clk 0:00:34]}  Kh7 {[%clk 0:00:32]} 38. Rd2 {[%clk 0:00:34]}  Kg6 {[%clk 0:00:31]} 39. Rd7 {[%clk 0:00:34]}  Rc5 {[%clk 0:00:19]} 40. Rb7 {[%clk 0:00:34]}  Rc4 {[%clk 0:00:19]} 41. Kf2 {[%clk 0:00:24]}  f6 {[%clk 0:00:19]} 42. exf6 {[%clk 0:00:24]}  gxf6 {[%clk 0:00:20]} 43. Kf3 {[%clk 0:00:22]}  Kf5 {[%clk 0:00:20]} 44. Rb5+ {[%clk 0:00:22]}  e5 {[%clk 0:00:20]} 45. Rb6 {[%clk 0:00:20]}  e4+ {[%clk 0:00:17]} 46. Kg2 {[%clk 0:00:20]}  Kg4 {[%clk 0:00:17]} 47. Rxf6 {[%clk 0:00:07]}  Rc2+ {[%clk 0:00:18]} 48. Kf1 {[%clk 0:00:08]}  b3 {[%clk 0:00:18]} 49. Rf4+ {[%clk 0:00:02]}  Kxg3 {[%clk 0:00:18]} 50. Rxe4 {[%clk 0:00:02]}  b2 {[%clk 0:00:18]} 51. Rb4 {[%clk 0:00:02]}  Rc1+ {[%clk 0:00:17]} 52. Ke2 {[%clk 0:00:03]}  b1=Q {[%clk 0:00:18]} 53. Rxb1 {[%clk 0:00:03]}  Rxb1 {[%clk 0:00:18]} 0-1


[Site "https://www.chess.com"]

[Event "Titled Tuesday Blitz June 6 Late 2023"]
[White "Nazari, Arad"]
[Black "Van Foreest, Machteld"]
[WhiteFideId "12577324"]
[BlackFideId "1051563"]
[WhiteElo "2175"]
[BlackElo "2018"]
[Result "1-0"]
[Round "2"]
[TimeControl "180+2"]
[Date "2023.06.07"]
[WhiteClock "0:00:55"]
[BlackClock "0:00:52"]
[Board "92"]

1. e4 {[%clk 0:02:54]}  c5 {[%clk 0:02:59]} 2. Nf3 {[%clk 0:02:54]}  e6 {[%clk 0:02:59]} 3. b3 {[%clk 0:02:54]}  b6 {[%clk 0:02:55]} 4. d4 {[%clk 0:02:51]}  Bb7 {[%clk 0:02:53]} 5. Nbd2 {[%clk 0:02:50]}  Nf6 {[%clk 0:02:51]} 6. Bd3 {[%clk 0:02:44]}  cxd4 {[%clk 0:02:48]} 7. Nxd4 {[%clk 0:02:45]}  Nc6 {[%clk 0:02:46]} 8. Nxc6 {[%clk 0:02:45]}  Bxc6 {[%clk 0:02:46]} 9. O-O {[%clk 0:02:44]}  d5 {[%clk 0:02:42]} 10. Qe2 {[%clk 0:02:25]}  Be7 {[%clk 0:02:29]} 11. Bb2 {[%clk 0:02:24]}  O-O {[%clk 0:02:27]} 12. c4 {[%clk 0:02:20]}  dxe4 {[%clk 0:02:17]} 13. Nxe4 {[%clk 0:02:19]}  Nxe4 {[%clk 0:02:16]} 14. Bxe4 {[%clk 0:02:20]}  Bxe4 {[%clk 0:02:16]} 15. Qxe4 {[%clk 0:02:21]}  Bf6 {[%clk 0:02:15]} 16. Rad1 {[%clk 0:02:08]}  Qe7 {[%clk 0:02:13]} 17. Bxf6 {[%clk 0:02:06]}  Qxf6 {[%clk 0:02:14]} 18. Rd7 {[%clk 0:02:04]}  Rfd8 {[%clk 0:02:07]} 19. Rfd1 {[%clk 0:02:03]}  h6 {[%clk 0:01:56]} 20. g3 {[%clk 0:01:52]}  Rac8 {[%clk 0:01:55]} 21. Qb7 {[%clk 0:01:49]}  a5 {[%clk 0:01:29]} 22. R1d3 {[%clk 0:01:35]}  Rb8 {[%clk 0:01:20]} 23. Qa7 {[%clk 0:01:27]}  Ra8 {[%clk 0:01:15]} 24. Qc7 {[%clk 0:01:03]}  Rac8 {[%clk 0:00:52]} 25. Rxd8+ {[%clk 0:00:55]} 1-0


[Site "https://www.chess.com"]

[Event "Titled Tuesday Blitz June 6 Late 2023"]
[White "Rangel, Daniel"]
[Black "Hollan, Martin"]
[WhiteFideId "2124475"]
[BlackFideId "360937"]
[WhiteElo "2231"]
[BlackElo "2370"]
[Result "0-1"]
[Round "2"]
[TimeControl "180+2"]
[Date "2023.06.07"]
[WhiteClock "0:00:16"]
[BlackClock "0:00:50"]
[Board "93"]

1. d4 {[%clk 0:03:00]}  g6 {[%clk 0:03:00]} 2. c4 {[%clk 0:02:59]}  Bg7 {[%clk 0:02:59]} 3. Nc3 {[%clk 0:03:00]}  f5 {[%clk 0:02:59]} 4. g4 {[%clk 0:02:58]}  fxg4 {[%clk 0:02:58]} 5. e4 {[%clk 0:02:58]}  c5 {[%clk 0:02:57]} 6. d5 {[%clk 0:02:57]}  d6 {[%clk 0:02:57]} 7. h3 {[%clk 0:02:57]}  b5 {[%clk 0:02:50]} 8. cxb5 {[%clk 0:02:52]}  a6 {[%clk 0:02:50]} 9. bxa6 {[%clk 0:02:46]}  Bxa6 {[%clk 0:02:46]} 10. hxg4 {[%clk 0:02:23]}  Bxf1 {[%clk 0:02:45]} 11. Kxf1 {[%clk 0:02:24]}  Nf6 {[%clk 0:02:44]} 12. g5 {[%clk 0:02:21]}  Nh5 {[%clk 0:02:20]} 13. Rxh5 {[%clk 0:02:21]}  gxh5 {[%clk 0:02:20]} 14. Qxh5+ {[%clk 0:02:22]}  Kf8 {[%clk 0:02:20]} 15. Nge2 {[%clk 0:02:17]}  Qe8 {[%clk 0:02:18]} 16. Qxe8+ {[%clk 0:02:10]}  Kxe8 {[%clk 0:02:18]} 17. Nf4 {[%clk 0:02:11]}  Bxc3 {[%clk 0:01:55]} 18. bxc3 {[%clk 0:02:12]}  Na6 {[%clk 0:01:54]} 19. Ne6 {[%clk 0:02:09]}  Kd7 {[%clk 0:01:54]} 20. f4 {[%clk 0:02:06]}  Nc7 {[%clk 0:01:53]} 21. f5 {[%clk 0:02:03]}  Nxe6 {[%clk 0:01:54]} 22. dxe6+ {[%clk 0:02:03]}  Kc6 {[%clk 0:01:54]} 23. Ke2 {[%clk 0:02:00]}  Ra4 {[%clk 0:01:50]} 24. Kd3 {[%clk 0:01:56]}  d5 {[%clk 0:01:44]} 25. e5 {[%clk 0:01:44]}  Re4 {[%clk 0:01:33]} 26. c4 {[%clk 0:00:56]}  Rxe5 {[%clk 0:01:30]} 27. Bb2 {[%clk 0:00:56]}  d4 {[%clk 0:01:30]} 28. Rf1 {[%clk 0:00:53]}  Rf8 {[%clk 0:01:29]} 29. Bc1 {[%clk 0:00:28]}  Rfxf5 {[%clk 0:01:27]} 30. Rh1 {[%clk 0:00:28]}  Rf3+ {[%clk 0:01:18]} 31. Kc2 {[%clk 0:00:28]}  Rxe6 {[%clk 0:01:09]} 32. Rxh7 {[%clk 0:00:27]}  Re2+ {[%clk 0:01:08]} 33. Kb1 {[%clk 0:00:26]}  Rf1 {[%clk 0:01:06]} 34. Rh6+ {[%clk 0:00:19]}  Kd7 {[%clk 0:01:05]} 35. g6 {[%clk 0:00:15]}  Ree1 {[%clk 0:01:00]} 36. g7 {[%clk 0:00:16]}  Rg1 {[%clk 0:00:56]} 37. Kb2 {[%clk 0:00:17]}  Rxg7 {[%clk 0:00:55]} 38. Rh5 {[%clk 0:00:14]}  Rg2+ {[%clk 0:00:54]} 39. Kb1 {[%clk 0:00:14]}  Rgg1 {[%clk 0:00:54]} 40. Rxc5 {[%clk 0:00:14]}  Rxc1+ {[%clk 0:00:54]} 41. Kb2 {[%clk 0:00:15]}  e6 {[%clk 0:00:53]} 42. a4 {[%clk 0:00:13]}  Kd6 {[%clk 0:00:52]} 43. Rb5 {[%clk 0:00:13]}  Rb1+ {[%clk 0:00:51]} 44. Kc2 {[%clk 0:00:13]}  Rxb5 {[%clk 0:00:52]} 45. cxb5 {[%clk 0:00:14]}  Kc5 {[%clk 0:00:53]} 46. Kd3 {[%clk 0:00:15]}  e5 {[%clk 0:00:53]} 47. b6 {[%clk 0:00:16]}  Kxb6 {[%clk 0:00:51]} 48. Ke4 {[%clk 0:00:17]}  Re1+ {[%clk 0:00:51]} 49. Kd5 {[%clk 0:00:17]}  Ka5 {[%clk 0:00:51]} 50. Kc4 {[%clk 0:00:16]}  Re3 {[%clk 0:00:50]} 0-1


[Site "https://www.chess.com"]

[Event "Titled Tuesday Blitz June 6 Late 2023"]
[White "Adury, Anant"]
[Black "Martins, Bruno Andre Leite"]
[WhiteFideId "30964687"]
[BlackFideId "1942255"]
[WhiteElo "2393"]
[BlackElo "2241"]
[Result "0-1"]
[Round "2"]
[TimeControl "180+2"]
[Date "2023.06.07"]
[WhiteClock "0:02:27"]
[BlackClock "0:02:28"]
[Board "94"]

1. c4 {[%clk 0:03:00]}  Nf6 {[%clk 0:03:00]} 2. Nc3 {[%clk 0:03:00]}  e5 {[%clk 0:02:56]} 3. Nf3 {[%clk 0:03:00]}  Nc6 {[%clk 0:02:56]} 4. e4 {[%clk 0:03:00]}  Bb4 {[%clk 0:02:54]} 5. d3 {[%clk 0:03:00]}  d6 {[%clk 0:02:53]} 6. a3 {[%clk 0:02:59]}  Bc5 {[%clk 0:02:52]} 7. Be2 {[%clk 0:02:58]}  a5 {[%clk 0:02:52]} 8. O-O {[%clk 0:02:58]}  h6 {[%clk 0:02:50]} 9. Be3 {[%clk 0:02:56]}  Nd7 {[%clk 0:02:48]} 10. d4 {[%clk 0:02:54]}  exd4 {[%clk 0:02:48]} 11. Nxd4 {[%clk 0:02:55]}  O-O {[%clk 0:02:46]} 12. Nxc6 {[%clk 0:02:40]}  bxc6 {[%clk 0:02:47]} 13. Bxc5 {[%clk 0:02:40]}  Nxc5 {[%clk 0:02:48]} 14. b4 {[%clk 0:02:40]}  axb4 {[%clk 0:02:48]} 15. axb4 {[%clk 0:02:41]}  Rxa1 {[%clk 0:02:47]} 16. Qxa1 {[%clk 0:02:42]}  Ne6 {[%clk 0:02:40]} 17. b5 {[%clk 0:02:40]}  Nd4 {[%clk 0:02:36]} 18. Bd3 {[%clk 0:02:40]}  Qg5 {[%clk 0:02:30]} 19. bxc6 {[%clk 0:02:33]}  Bh3 {[%clk 0:02:28]} 20. g3 {[%clk 0:02:27]} 0-1


[Site "https://www.chess.com"]

[Event "Titled Tuesday Blitz June 6 Late 2023"]
[White "Fiorito, Joaquin"]
[Black "Sairam, Pranav"]
[WhiteFideId "180173"]
[BlackFideId "30951330"]
[WhiteElo "2199"]
[BlackElo "1918"]
[Result "1-0"]
[Round "2"]
[TimeControl "180+2"]
[Date "2023.06.07"]
[WhiteClock "0:00:11"]
[BlackClock "0:00:01"]
[Board "95"]

1. d4 {[%clk 0:03:00]}  d5 {[%clk 0:02:57]} 2. c4 {[%clk 0:03:00]}  e6 {[%clk 0:02:55]} 3. Nc3 {[%clk 0:03:00]}  Be7 {[%clk 0:02:54]} 4. Nf3 {[%clk 0:02:59]}  Nf6 {[%clk 0:02:53]} 5. Bf4 {[%clk 0:03:00]}  O-O {[%clk 0:02:52]} 6. e3 {[%clk 0:03:01]}  b6 {[%clk 0:02:50]} 7. cxd5 {[%clk 0:03:00]}  Nxd5 {[%clk 0:02:50]} 8. Bg3 {[%clk 0:02:53]}  c5 {[%clk 0:02:45]} 9. Bd3 {[%clk 0:02:50]}  cxd4 {[%clk 0:02:42]} 10. exd4 {[%clk 0:02:50]}  Bb7 {[%clk 0:02:40]} 11. O-O {[%clk 0:02:50]}  Nd7 {[%clk 0:02:39]} 12. Qe2 {[%clk 0:02:45]}  N7f6 {[%clk 0:02:38]} 13. Ne5 {[%clk 0:02:39]}  Rc8 {[%clk 0:02:35]} 14. Rac1 {[%clk 0:02:38]}  Nb4 {[%clk 0:02:32]} 15. Bb1 {[%clk 0:02:37]}  Qxd4 {[%clk 0:02:25]} 16. Rfd1 {[%clk 0:02:35]}  Qc5 {[%clk 0:02:25]} 17. a3 {[%clk 0:02:19]}  Nc6 {[%clk 0:02:07]} 18. Nb5 {[%clk 0:02:04]}  Nd4 {[%clk 0:01:52]} 19. Nxd4 {[%clk 0:01:48]}  Qxc1 {[%clk 0:01:50]} 20. h4 {[%clk 0:01:09]}  Qh6 {[%clk 0:01:10]} 21. Re1 {[%clk 0:00:33]}  Rc1 {[%clk 0:01:04]} 22. f3 {[%clk 0:00:19]}  Bc5 {[%clk 0:00:43]} 23. Bf2 {[%clk 0:00:15]}  Rxe1+ {[%clk 0:00:22]} 24. Qxe1 {[%clk 0:00:16]}  g6 {[%clk 0:00:10]} 25. b4 {[%clk 0:00:14]}  Bxd4 {[%clk 0:00:10]} 26. Bxd4 {[%clk 0:00:15]}  Nd5 {[%clk 0:00:07]} 27. Ng4 {[%clk 0:00:15]}  Qf4 {[%clk 0:00:06]} 28. Be4 {[%clk 0:00:15]}  f5 {[%clk 0:00:04]} 29. Be5 {[%clk 0:00:13]}  fxe4 {[%clk 0:00:01]} 30. Bxf4 {[%clk 0:00:14]}  Nxf4 {[%clk 0:00:01]} 31. fxe4 {[%clk 0:00:11]}  h5 {[%clk 0:00:01]} 32. Ne5 {[%clk 0:00:11]} 1-0


[Site "https://www.chess.com"]

[Event "Titled Tuesday Blitz June 6 Late 2023"]
[White "Hoffmann, Asa"]
[Black "Melikyan, Gnel"]
[WhiteFideId "2001470"]
[BlackFideId "54109990"]
[WhiteElo "2117"]
[BlackElo "2138"]
[Result "0-1"]
[Round "2"]
[TimeControl "180+2"]
[Date "2023.06.07"]
[WhiteClock "0:00:40"]
[BlackClock "0:00:20"]
[Board "96"]

1. d4 {[%clk 0:02:39]}  Nf6 {[%clk 0:02:57]} 2. Bg5 {[%clk 0:02:37]}  g6 {[%clk 0:02:58]} 3. Nc3 {[%clk 0:02:35]}  Bg7 {[%clk 0:02:42]} 4. e4 {[%clk 0:02:34]}  d6 {[%clk 0:02:43]} 5. f3 {[%clk 0:02:34]}  O-O {[%clk 0:02:43]} 6. Qd2 {[%clk 0:02:34]}  c6 {[%clk 0:02:43]} 7. O-O-O {[%clk 0:02:34]}  Re8 {[%clk 0:02:43]} 8. Bh6 {[%clk 0:02:30]}  Bh8 {[%clk 0:02:43]} 9. h4 {[%clk 0:02:30]}  Qa5 {[%clk 0:02:42]} 10. h5 {[%clk 0:02:28]}  Nxh5 {[%clk 0:02:41]} 11. Nge2 {[%clk 0:02:25]}  e5 {[%clk 0:02:39]} 12. Kb1 {[%clk 0:02:20]}  exd4 {[%clk 0:02:30]} 13. Nxd4 {[%clk 0:02:19]}  Ng3 {[%clk 0:02:31]} 14. Nb3 {[%clk 0:02:14]}  Qc7 {[%clk 0:02:23]} 15. Rg1 {[%clk 0:02:05]}  Nxf1 {[%clk 0:02:18]} 16. Rgxf1 {[%clk 0:02:04]}  Be6 {[%clk 0:02:14]} 17. Bf4 {[%clk 0:01:57]}  Be5 {[%clk 0:02:11]} 18. Rh1 {[%clk 0:01:57]}  f6 {[%clk 0:01:57]} 19. Be3 {[%clk 0:01:55]}  Nd7 {[%clk 0:01:52]} 20. f4 {[%clk 0:01:55]}  Bxc3 {[%clk 0:01:52]} 21. Qxc3 {[%clk 0:01:55]}  Bxb3 {[%clk 0:01:52]} 22. axb3 {[%clk 0:01:54]}  Rxe4 {[%clk 0:01:52]} 23. Bd4 {[%clk 0:01:48]}  Rf8 {[%clk 0:01:40]} 24. g3 {[%clk 0:01:46]}  d5 {[%clk 0:01:20]} 25. Bc5 {[%clk 0:01:42]}  Rfe8 {[%clk 0:01:08]} 26. Rdf1 {[%clk 0:01:28]}  b6 {[%clk 0:00:49]} 27. Bf2 {[%clk 0:01:25]}  Qd6 {[%clk 0:00:49]} 28. g4 {[%clk 0:01:16]}  c5 {[%clk 0:00:46]} 29. Bg3 {[%clk 0:01:15]}  d4 {[%clk 0:00:46]} 30. Qc4+ {[%clk 0:01:13]}  Qe6 {[%clk 0:00:46]} 31. Qa6 {[%clk 0:01:06]}  Qxg4 {[%clk 0:00:37]} 32. Qxa7 {[%clk 0:00:59]}  Nf8 {[%clk 0:00:34]} 33. Rfg1 {[%clk 0:00:54]}  Qe6 {[%clk 0:00:28]} 34. f5 {[%clk 0:00:53]}  Qxf5 {[%clk 0:00:18]} 35. Qxb6 {[%clk 0:00:48]}  Re2 {[%clk 0:00:19]} 36. Rc1 {[%clk 0:00:45]}  d3 {[%clk 0:00:19]} 37. Rhf1 {[%clk 0:00:40]}  dxc2+ {[%clk 0:00:19]} 38. Ka2 {[%clk 0:00:40]}  Ra8+ {[%clk 0:00:20]} 0-1


[Site "https://www.chess.com"]